[Event "FIDE WYCC Girls U14 2023"]
[Site "Montesilvano"]
[Date "2023.11.15"]
[Round "3.7"]
[White "Tsetskhladze, Mariam"]
[Black "Romany, Joy"]
[Result "1-0"]
[ECO "B48"]
[WhiteElo "1911"]
[BlackElo "1764"]
[Annotator "NA"]
[PlyCount "95"]
[EventDate "2023.11.13"]
[EventType "swiss"]
[EventCountry "ITA"]
[SourceTitle "playchess.com"]
[Source "ChessBase"]
[SourceQuality "1"]
[TimeControl "40/5400+30:1800+30"]

1. e4 {[%emt 0:00:29]} c5 {[%emt 0:00:14]} 2. Nf3 {[%emt 0:00:08]} e6 {[%emt 0:00:07]} 3. d4 {[%emt 0:00:16]} cxd4 {[%emt 0:00:05]} 4. Nxd4 {[%emt 0:00:05]} Nc6 {[%emt 0:00:04]} 5. Nc3 {[%emt 0:00:13]} Qc7 {[%emt 0:00:18]} 6. Be3 {[%emt 0:01:22]} a6 {[%emt 0:00:15]} 7. g4 {[%emt 0:01:51]} b5 {[%emt 0:02:58]} 8. Nxc6 {[%emt 0:00:41]} Qxc6 {[%emt 0:04:53]} 9. Qd2 {[%emt 0:01:36]} Bb7 {[%emt 0:06:12]} 10. O-O-O {[%emt 0:03:03]} b4 {[%emt 0:15:57]} 11. Ne2 {[%emt 0:00:51]} Nf6 {[%emt 0:07:29]} 12. f3 {[%emt 0:05:41]} d5 {[%emt 0:04:10]} 13. e5 {[%emt 0:14:48]} Nd7 {[%emt 0:01:10]} 14. f4 {[%emt 0:13:14]} Nc5 {[%emt 0:21:06]} 15. Nd4 {[%emt 0:04:44]} Qa4 {[%emt 0:01:41]} 16. Kb1 {[%emt 0:00:36]} Ne4 {[%emt 0:01:00]} 17. Qe1 {[%emt 0:07:15]} Rc8 {[%emt 0:06:57]} 18. Bd3 {[%emt 0:06:14]} Bc5 {[%emt 0:03:39]} 19. f5 {[%emt 0:10:58]} Bxd4 {[%emt 0:04:20]} 20. Bxd4 {[%emt 0:00:06]} O-O {[%emt 0:00:55]} 21. b3 {[%emt 0:03:53]} Qa5 {[%emt 0:01:53]} 22. Bxe4 {[%emt 0:02:40]} dxe4 {[%emt 0:00:03]} 23. Rc1 {[%emt 0:08:06]} e3 {[%emt 0:07:34]} 24. Rf1 {[%emt 0:03:56]} Be4 {[%emt 0:03:59]} 25. Qxe3 {[%emt 0:02:09]} exf5 {[%emt 0:01:24]} 26. gxf5 {[%emt 0:00:21]} Bxc2+ {[%emt 0:00:51]} 27. Ka1 {[%emt 0:05:52]} Qd5 {[%emt 0:01:51]} 28. Bb2 {[%emt 0:01:49]} Qd3 {[%emt 0:01:54]} 29. Qg5 {[%emt 0:00:56]} h6 {[%emt 0:00:32]} 30. Qg4 {[%emt 0:00:47]} Rc3 {[%emt 0:00:54]} 31. Rg1 {[%emt 0:00:39]} g6 {[%emt 0:00:39]} 32. fxg6 {[%emt 0:00:25]} fxg6 {[%emt 0:00:01]} 33. Qxb4 {[%emt 0:00:42]} Rc6 {[%emt 0:00:31]} 34. Qe7 Qd8 {[%emt 0:00:38]} 35. Qb4 {[%emt 0:01:01]} a5 {[%emt 0:00:45]} 36. Qb5 {[%emt 0:00:27]} Qe8 {[%emt 0:00:50]} 37. Qe2 {[%emt 0:00:34]} Bf5 {[%emt 0:00:27]} 38. Qe3 {[%emt 0:00:28]} Kh7 {[%emt 0:00:18]} 39. Rxc6 {[%emt 0:00:31]} Qxc6 {[%emt 0:00:11]} 40. Rc1 {[%emt 0:00:00]} Qe6 {[%emt 0:00:00]} 41. Rd1 {[%emt 0:04:45]} Bg4 {[%emt 0:02:23]} 42. Rd6 {[%emt 0:03:48]} Rf1+ {[%emt 0:10:58]} 43. Bc1 {[%emt 0:00:09]} Rxc1+ {[%emt 0:02:55]} 44. Kb2 {[%emt 0:00:35]} Rb1+ {[%emt 0:03:09]} 45. Kxb1 {[%emt 0:00:05]} Bf5+ {[%emt 0:00:09]} 46. Kb2 {[%emt 0:00:08]} Qc8 {[%emt 0:00:05]} 47. Qc3 {[%emt 0:00:51]} Qa8 {[%emt 0:00:10]} 48. Qc7+ {[%emt 0:00:07]} 1-0

[Event "FIDE WYCC Girls U14 2023"]
[Site "Montesilvano"]
[Date "2023.11.15"]
[Round "3.8"]
[White "Iordache, Alexia-Andreea"]
[Black "Natoli, Alessia"]
[Result "0-1"]
[ECO "B67"]
[WhiteElo "1892"]
[BlackElo "1756"]
[Annotator "NA"]
[PlyCount "154"]
[EventDate "2023.11.13"]
[EventType "swiss"]
[EventCountry "ITA"]
[SourceTitle "playchess.com"]
[Source "ChessBase"]
[SourceQuality "1"]
[TimeControl "40/5400+30:1800+30"]

1. e4 {[%emt 0:00:12]} c5 {[%emt 0:00:15]} 2. Nf3 {[%emt 0:00:06]} Nc6 {[%emt 0:00:37]} 3. d4 {[%emt 0:00:04]} cxd4 {[%emt 0:00:23]} 4. Nxd4 {[%emt 0:00:04]} Nf6 {[%emt 0:01:28]} 5. Nc3 {[%emt 0:00:19]} d6 {[%emt 0:00:28]} 6. Bg5 {[%emt 0:00:22]} e6 {[%emt 0:01:12]} 7. Qd2 {[%emt 0:00:04]} a6 {[%emt 0:05:11]} 8. O-O-O {[%emt 0:00:10]} Bd7 {[%emt 0:01:46]} 9. f3 {[%emt 0:00:08]} Nxd4 {[%emt 0:01:39]} 10. Qxd4 {[%emt 0:00:09]} Be7 {[%emt 0:00:22]} 11. h4 {[%emt 0:02:37]} b5 {[%emt 0:04:42]} 12. e5 {[%emt 0:14:07]} dxe5 {[%emt 0:03:25]} 13. Qxe5 {[%emt 0:00:09]} Qb6 {[%emt 0:08:42]} 14. Kb1 {[%emt 0:15:39]} h6 {[%emt 0:08:05]} 15. Bf4 {[%emt 0:05:26]} Qc5 {[%emt 0:08:07]} 16. Qxc5 {[%emt 0:05:12]} Bxc5 {[%emt 0:00:09]} 17. Bd3 {[%emt 0:01:08]} Bc6 {[%emt 0:03:26]} 18. Be5 {[%emt 0:03:43]} Ke7 {[%emt 0:04:06]} 19. Rhf1 {[%emt 0:05:25]} Rad8 {[%emt 0:06:42]} 20. g4 Bd4 {[%emt 0:04:17]} 21. Bxd4 {[%emt 0:07:03]} Rxd4 {[%emt 0:00:11]} 22. Ne2 {[%emt 0:00:47]} Rd6 {[%emt 0:01:38]} 23. Rde1 {[%emt 0:02:50]} g5 {[%emt 0:04:51]} 24. h5 {[%emt 0:11:49]} Ba8 {[%emt 0:06:44]} 25. Ng3 {[%emt 0:05:59]} Kf8 {[%emt 0:03:04]} 26. a4 {[%emt 0:14:13]} b4 {[%emt 0:03:16]} 27. Be4 {[%emt 0:00:23]} Kg7 {[%emt 0:01:23]} 28. Bxa8 {[%emt 0:00:15]} Rxa8 {[%emt 0:00:03]} 29. Ne4 {[%emt 0:01:01]} Rd4 {[%emt 0:01:33]} 30. Nc5 {[%emt 0:00:20]} Rd5 {[%emt 0:01:20]} 31. Nb3 {[%emt 0:01:08]} Rad8 {[%emt 0:01:01]} 32. Kc1 {[%emt 0:01:19]} Nd7 {[%emt 0:02:43]} 33. Re4 {[%emt 0:01:43]} a5 {[%emt 0:00:52]} 34. c4 {[%emt 0:02:23]} bxc3 {[%emt 0:02:38]} 35. bxc3 {[%emt 0:00:03]} Rc8 {[%emt 0:01:31]} 36. Kc2 {[%emt 0:00:57]} Ne5 {[%emt 0:03:38]} 37. Rd4 {[%emt 0:00:36]} Rxd4 {[%emt 0:02:02]} 38. Nxd4 {[%emt 0:00:02]} Nc4 {[%emt 0:00:39]} 39. Re1 {[%emt 0:00:15]} Kf6 {[%emt 0:00:34]} 40. Nb5 {[%emt 0:00:00]} Rc5 {[%emt 0:00:00]} 41. Re4 {[%emt 0:07:26]} e5 {[%emt 0:08:40]} 42. Re2 {[%emt 0:04:27]} Rd5 {[%emt 0:03:46]} 43. Nc7 {[%emt 0:01:40]} Rd8 {[%emt 0:01:26]} 44. Nb5 {[%emt 0:04:51]} Rd7 {[%emt 0:02:25]} 45. Re4 {[%emt 0:01:02]} Nd2 {[%emt 0:04:18]} 46. Re3 {[%emt 0:00:14]} Rd5 {[%emt 0:02:36]} 47. Nc7 {[%emt 0:01:07]} Rd8 {[%emt 0:02:35]} 48. Nb5 {[%emt 0:05:32]} Rd7 {[%emt 0:01:12]} 49. Na3 {[%emt 0:00:45]} Ke6 {[%emt 0:01:54]} 50. Nb5 {[%emt 0:02:23]} Nc4 {[%emt 0:02:47]} 51. Re2 {[%emt 0:01:54]} Kd5 {[%emt 0:01:25]} 52. Re1 {[%emt 0:03:34]} Kc5 {[%emt 0:00:27]} 53. Re2 {[%emt 0:00:09]} f6 {[%emt 0:01:01]} 54. Rf2 {[%emt 0:01:17]} f5 {[%emt 0:02:41]} 55. gxf5 {[%emt 0:01:12]} Rf7 {[%emt 0:00:19]} 56. Kd3 {[%emt 0:00:32]} Rxf5 {[%emt 0:00:49]} 57. Nc7 {[%emt 0:00:25]} g4 {[%emt 0:01:48]} 58. Ne6+ {[%emt 0:00:20]} Kd6 {[%emt 0:00:32]} 59. Ng7 {[%emt 0:00:28]} Rf4 {[%emt 0:01:54]} 60. Ke2 {[%emt 0:01:21]} Rf7 {[%emt 0:01:10]} 61. fxg4 {[%emt 0:01:12]} Rxg7 {[%emt 0:00:07]} 62. Rf6+ {[%emt 0:00:21]} Ke7 {[%emt 0:00:57]} 63. Rxh6 {[%emt 0:00:19]} Rxg4 {[%emt 0:00:05]} 64. Rc6 {[%emt 0:00:32]} Nb2 {[%emt 0:01:32]} 65. Ra6 {[%emt 0:00:33]} Rxa4 {[%emt 0:00:47]} 66. h6 {[%emt 0:00:08]} Kf7 {[%emt 0:00:24]} 67. Kd2 {[%emt 0:01:20]} Rh4 {[%emt 0:00:51]} 68. Kc2 {[%emt 0:00:27]} Rh2+ {[%emt 0:00:15]} 69. Kb3 {[%emt 0:00:10]} a4+ {[%emt 0:00:10]} 70. Ka3 {[%emt 0:00:50]} Kg8 {[%emt 0:01:19]} 71. Re6 {[%emt 0:00:20]} Kh7 {[%emt 0:00:12]} 72. Rc6 {[%emt 0:00:28]} e4 {[%emt 0:00:24]} 73. Re6 {[%emt 0:00:27]} e3 {[%emt 0:00:10]} 74. Kb4 {[%emt 0:00:23]} e2 {[%emt 0:00:12]} 75. Ka3 {[%emt 0:00:05]} Nd3 {[%emt 0:00:10]} 76. Kxa4 {[%emt 0:00:28]} e1=Q {[%emt 0:00:07]} 77. Rxe1 {[%emt 0:00:03]} Nxe1 {[%emt 0:00:13]} 0-1

[Event "FIDE WYCC Girls U14 2023"]
[Site "Montesilvano"]
[Date "2023.11.15"]
[Round "3.9"]
[White "Ciarletta, Iris"]
[Black "Sachi Jain"]
[Result "1/2-1/2"]
[ECO "D37"]
[WhiteElo "1882"]
[BlackElo "1743"]
[Annotator "NA"]
[PlyCount "118"]
[EventDate "2023.11.13"]
[EventType "swiss"]
[EventCountry "ITA"]
[SourceTitle "playchess.com"]
[Source "ChessBase"]
[SourceQuality "1"]
[TimeControl "40/5400+30:1800+30"]

1. d4 {[%emt 0:00:18]} d5 {[%emt 0:00:27]} 2. c4 {[%emt 0:00:42]} e6 {[%emt 0:00:20]} 3. Nc3 {[%emt 0:01:19]} Be7 {[%emt 0:00:48]} 4. Nf3 {[%emt 0:00:39]} Nf6 {[%emt 0:00:28]} 5. Bf4 {[%emt 0:03:21]} O-O {[%emt 0:02:56]} 6. h3 {[%emt 0:01:35]} b6 {[%emt 0:01:03]} 7. e3 {[%emt 0:03:12]} Bb7 {[%emt 0:00:28]} 8. Be2 {[%emt 0:07:50]} c5 {[%emt 0:01:04]} 9. O-O {[%emt 0:03:02]} Nbd7 {[%emt 0:01:45]} 10. Bg3 {[%emt 0:08:01]} Rc8 {[%emt 0:05:35]} 11. cxd5 {[%emt 0:01:35]} Nxd5 {[%emt 0:04:03]} 12. Nb5 {[%emt 0:01:02]} a6 {[%emt 0:03:58]} 13. Nd6 {[%emt 0:01:23]} Bxd6 {[%emt 0:05:36]} 14. Bxd6 {[%emt 0:00:12]} Re8 {[%emt 0:00:46]} 15. Bg3 {[%emt 0:02:00]} cxd4 {[%emt 0:07:30]} 16. Nxd4 {[%emt 0:04:58]} Nc5 {[%emt 0:03:09]} 17. Bf3 {[%emt 0:03:17]} Qe7 {[%emt 0:09:25]} 18. Bxd5 {[%emt 0:12:01]} Bxd5 {[%emt 0:00:31]} 19. Nf5 {[%emt 0:00:18]} exf5 {[%emt 0:00:38]} 20. Qxd5 {[%emt 0:00:08]} Qe4 {[%emt 0:23:22]} 21. Rfd1 {[%emt 0:05:40]} Qxd5 {[%emt 0:08:01]} 22. Rxd5 {[%emt 0:00:11]} f6 {[%emt 0:01:43]} 23. Rxf5 {[%emt 0:14:23]} Ne4 {[%emt 0:01:35]} 24. Kh2 {[%emt 0:00:45]} Rc2 {[%emt 0:02:06]} 25. b3 {[%emt 0:00:56]} Rd8 {[%emt 0:04:17]} 26. Rf4 {[%emt 0:01:18]} Nxg3 {[%emt 0:00:38]} 27. Kxg3 {[%emt 0:00:29]} Rdd2 {[%emt 0:01:03]} 28. a3 {[%emt 0:01:21]} Rb2 {[%emt 0:00:56]} 29. b4 {[%emt 0:00:43]} Ra2 {[%emt 0:00:31]} 30. Rc1 {[%emt 0:01:16]} Rxa3 {[%emt 0:00:27]} 31. Rc8+ {[%emt 0:01:26]} Kf7 {[%emt 0:00:58]} 32. Rc7+ {[%emt 0:00:31]} Kf8 {[%emt 0:01:46]} 33. Rg4 {[%emt 0:06:58]} g5 {[%emt 0:03:50]} 34. Rgc4 {[%emt 0:01:40]} Rad3 {[%emt 0:02:16]} 35. Rb7 {[%emt 0:03:59]} Rd7 {[%emt 0:01:43]} 36. Rxb6 {[%emt 0:00:31]} R2d6 {[%emt 0:00:09]} 37. Rcc6 {[%emt 0:00:37]} Rxc6 {[%emt 0:01:19]} 38. Rxc6 {[%emt 0:00:06]} Kf7 {[%emt 0:00:27]} 39. Rxa6 {[%emt 0:00:20]} Rb7 {[%emt 0:00:00]} 40. Ra4 {[%emt 0:00:00]} Ke6 {[%emt 0:00:00]} 41. Kf3 {[%emt 0:02:26]} f5 {[%emt 0:03:02]} 42. Ra6+ {[%emt 0:02:17]} Kf7 {[%emt 0:00:47]} 43. Ra5 {[%emt 0:00:35]} Rxb4 {[%emt 0:01:15]} 44. Rxf5+ {[%emt 0:00:06]} Kg6 {[%emt 0:00:08]} 45. Rd5 {[%emt 0:00:28]} Rb3 {[%emt 0:01:32]} 46. Rd4 {[%emt 0:00:59]} h5 {[%emt 0:00:39]} 47. g3 {[%emt 0:02:18]} Kf6 {[%emt 0:01:01]} 48. Ra4 {[%emt 0:00:39]} Kg6 {[%emt 0:00:52]} 49. Ra5 {[%emt 0:03:01]} Rc3 {[%emt 0:02:21]} 50. Ra6+ {[%emt 0:01:30]} Kg7 {[%emt 0:00:22]} 51. h4 {[%emt 0:01:01]} g4+ {[%emt 0:00:29]} 52. Kf4 {[%emt 0:00:27]} Rc2 {[%emt 0:00:13]} 53. f3 {[%emt 0:00:28]} Rf2 {[%emt 0:00:33]} 54. Kg5 {[%emt 0:04:28]} Rxf3 {[%emt 0:03:22]} 55. Ra7+ {[%emt 0:02:38]} Kf8 {[%emt 0:02:22]} 56. Kxh5 {[%emt 0:02:43]} Rxg3 {[%emt 0:00:05]} 57. Ra4 {[%emt 0:02:43]} Rxe3 {[%emt 0:00:26]} 58. Rxg4 {[%emt 0:00:06]} Re6 {[%emt 0:00:11]} 59. Ra4 {[%emt 0:01:18]} Kg7 {[%emt 0:00:11]} 1/2-1/2

[Event "FIDE WYCC Girls U14 2023"]
[Site "Montesilvano"]
[Date "2023.11.15"]
[Round "3.10"]
[White "Maklakova, Naomi"]
[Black "Sezdbekova, Aizhan"]
[Result "1/2-1/2"]
[ECO "A46"]
[WhiteElo "1873"]
[BlackElo "1594"]
[Annotator "NA"]
[PlyCount "147"]
[EventDate "2023.11.13"]
[EventType "swiss"]
[EventCountry "ITA"]
[SourceTitle "playchess.com"]
[Source "ChessBase"]
[SourceQuality "1"]
[TimeControl "40/5400+30:1800+30"]

1. d4 {[%emt 0:00:38]} Nf6 {[%emt 0:00:06]} 2. Nf3 {[%emt 0:00:13]} e6 {[%emt 0:00:35]} 3. Bf4 {[%emt 0:00:25]} c5 {[%emt 0:03:33]} 4. e3 {[%emt 0:01:01]} d5 {[%emt 0:00:16]} 5. c3 {[%emt 0:02:28]} Bd6 {[%emt 0:00:17]} 6. Bg3 {[%emt 0:02:59]} Qc7 {[%emt 0:06:15]} 7. Nbd2 {[%emt 0:04:46]} Nbd7 {[%emt 0:02:11]} 8. Bd3 {[%emt 0:05:00]} b6 {[%emt 0:00:38]} 9. Rc1 {[%emt 0:13:51]} Bb7 {[%emt 0:01:59]} 10. c4 {[%emt 0:04:38]} Rc8 {[%emt 0:28:19]} 11. O-O {[%emt 0:05:01]} Bxg3 {[%emt 0:04:41]} 12. hxg3 {[%emt 0:02:40]} O-O {[%emt 0:02:13]} 13. cxd5 {[%emt 0:05:16]} exd5 {[%emt 0:02:30]} 14. dxc5 {[%emt 0:04:26]} bxc5 {[%emt 0:00:45]} 15. Qa4 {[%emt 0:01:24]} Bc6 {[%emt 0:08:40]} 16. Qh4 {[%emt 0:03:41]} Rb8 {[%emt 0:04:37]} 17. b3 {[%emt 0:02:56]} Qa5 {[%emt 0:04:25]} 18. Rc2 {[%emt 0:11:17]} Bb5 {[%emt 0:05:23]} 19. Bxb5 {[%emt 0:01:12]} Qxb5 {[%emt 0:03:58]} 20. Rfc1 {[%emt 0:02:45]} Rfe8 {[%emt 0:00:36]} 21. Qh3 {[%emt 0:05:02]} Rb6 {[%emt 0:03:43]} 22. g4 {[%emt 0:01:40]} a5 {[%emt 0:05:09]} 23. g5 {[%emt 0:01:52]} Ne4 {[%emt 0:02:09]} 24. Nxe4 {[%emt 0:00:14]} dxe4 {[%emt 0:01:57]} 25. Nd2 {[%emt 0:01:16]} Rd6 {[%emt 0:00:54]} 26. Nc4 {[%emt 0:01:36]} Rd5 {[%emt 0:01:41]} 27. Qg4 {[%emt 0:04:52]} Nb6 {[%emt 0:03:40]} 28. Qf4 {[%emt 0:01:49]} Nc8 {[%emt 0:01:36]} 29. g3 {[%emt 0:07:22]} g6 {[%emt 0:00:59]} 30. Kg2 {[%emt 0:00:30]} f5 {[%emt 0:01:09]} 31. gxf6 {[%emt 0:01:05]} Rf5 {[%emt 0:00:07]} 32. Qh4 {[%emt 0:00:10]} Rf8 {[%emt 0:00:55]} 33. Qxe4 {[%emt 0:01:39]} R8xf6 {[%emt 0:00:27]} 34. Qa8 {[%emt 0:01:10]} Rf8 {[%emt 0:00:24]} 35. Qe4 {[%emt 0:00:18]} Re8 {[%emt 0:00:16]} 36. Qh4 {[%emt 0:00:37]} Qc6+ {[%emt 0:00:28]} 37. Kf1 {[%emt 0:00:18]} Qf3 {[%emt 0:00:50]} 38. g4 {[%emt 0:00:18]} Rff8 {[%emt 0:00:35]} 39. Re2 {[%emt 0:00:51]} Kg7 {[%emt 0:00:29]} 40. Nd2 {[%emt 0:00:00]} Qd5 {[%emt 0:00:00]} 41. e4 {[%emt 0:05:38]} Qe5 {[%emt 0:08:22]} 42. Kg2 {[%emt 0:06:18]} Rf7 {[%emt 0:05:41]} 43. Rh1 {[%emt 0:08:04]} Kg8 {[%emt 0:02:55]} 44. Nf3 {[%emt 0:00:53]} Qg7 {[%emt 0:00:31]} 45. Ng5 {[%emt 0:00:44]} Rd7 {[%emt 0:03:06]} 46. Qg3 {[%emt 0:00:56]} h6 {[%emt 0:00:45]} 47. Nh3 {[%emt 0:03:00]} Nd6 {[%emt 0:00:46]} 48. f3 {[%emt 0:00:48]} Nb5 {[%emt 0:01:14]} 49. Nf4 {[%emt 0:00:41]} Nc3 {[%emt 0:02:31]} 50. Rc2 {[%emt 0:00:48]} g5 {[%emt 0:02:19]} 51. Nh5 {[%emt 0:01:12]} Qd4 {[%emt 0:00:14]} 52. Qf2 {[%emt 0:00:24]} Qe5 {[%emt 0:01:51]} 53. Qf1 {[%emt 0:04:58]} Nd1 {[%emt 0:03:57]} 54. Qe2 {[%emt 0:00:54]} Red8 {[%emt 0:00:22]} 55. Ng3 {[%emt 0:00:31]} Qf4 {[%emt 0:00:33]} 56. Kh3 {[%emt 0:02:09]} Rd2 {[%emt 0:01:01]} 57. Rxd2 {[%emt 0:00:25]} Rxd2 {[%emt 0:00:09]} 58. Qc4+ {[%emt 0:00:03]} Kh7 {[%emt 0:01:08]} 59. Rxd1 {[%emt 0:01:31]} Rxd1 {[%emt 0:00:07]} 60. Qe2 {[%emt 0:00:34]} Rd2 {[%emt 0:01:15]} 61. Qa6 {[%emt 0:00:16]} Qxf3 {[%emt 0:00:32]} 62. Qb7+ {[%emt 0:00:09]} Kg8 {[%emt 0:01:04]} 63. Qc8+ {[%emt 0:00:19]} Kf7 {[%emt 0:00:37]} 64. Qb7+ {[%emt 0:00:51]} Ke6 {[%emt 0:00:33]} 65. Qc6+ {[%emt 0:00:38]} Kf7 {[%emt 0:00:37]} 66. Qc7+ {[%emt 0:00:21]} Kg8 {[%emt 0:00:12]} 67. Qc8+ {[%emt 0:00:06]} Kf7 {[%emt 0:00:13]} 68. Qc7+ {[%emt 0:00:36]} Ke6 {[%emt 0:00:07]} 69. Qc8+ {[%emt 0:00:23]} Kf7 {[%emt 0:00:50]} 70. Qc7+ {[%emt 0:00:59]} Ke6 71. Qc6+ Ke5 72. Qxc5+ Kf4 73. Qf8+ Ke3 74. Qc5+ 1/2-1/2

[Event "FIDE WYCC Girls U14 2023"]
[Site "Montesilvano"]
[Date "2023.11.15"]
[Round "3.11"]
[White "Piddubna, Bozhena"]
[Black "Cutiyog, Jirah Floravie"]
[Result "1-0"]
[ECO "E67"]
[WhiteElo "2081"]
[BlackElo "1305"]
[Annotator "NA"]
[PlyCount "91"]
[EventDate "2023.11.13"]
[EventType "swiss"]
[EventCountry "ITA"]
[SourceTitle "playchess.com"]
[Source "ChessBase"]
[SourceQuality "1"]
[TimeControl "40/5400+30:1800+30"]

1. Nf3 {[%emt 0:00:27]} Nf6 {[%emt 0:00:07]} 2. g3 {[%emt 0:00:04]} g6 {[%emt 0:00:05]} 3. Bg2 {[%emt 0:00:04]} Bg7 {[%emt 0:00:05]} 4. O-O {[%emt 0:00:08]} O-O {[%emt 0:00:04]} 5. d4 {[%emt 0:00:18]} d6 {[%emt 0:00:19]} 6. c4 {[%emt 0:00:10]} Nbd7 {[%emt 0:00:37]} 7. Nc3 {[%emt 0:00:13]} e5 {[%emt 0:01:02]} 8. e3 {[%emt 0:00:10]} Re8 {[%emt 0:01:20]} 9. a4 {[%emt 0:00:14]} exd4 {[%emt 0:02:12]} 10. Nxd4 {[%emt 0:03:23]} Nc5 {[%emt 0:04:15]} 11. a5 {[%emt 0:07:41]} Nfe4 {[%emt 0:13:46]} 12. Nd5 {[%emt 0:07:02]} Be6 {[%emt 0:07:24]} 13. Qc2 {[%emt 0:10:58]} f5 {[%emt 0:08:52]} 14. Nxe6 {[%emt 0:07:19]} Rxe6 {[%emt 0:01:24]} 15. Rb1 {[%emt 0:01:07]} c6 {[%emt 0:06:25]} 16. Nf4 {[%emt 0:00:28]} Re7 {[%emt 0:00:18]} 17. b4 {[%emt 0:00:17]} Nd7 {[%emt 0:03:13]} 18. Rb3 {[%emt 0:06:04]} Rc8 {[%emt 0:06:15]} 19. Rd1 {[%emt 0:05:04]} Ndf6 {[%emt 0:10:26]} 20. Rbd3 {[%emt 0:07:45]} Rd7 {[%emt 0:04:57]} 21. Ne6 {[%emt 0:06:56]} Qe7 {[%emt 0:00:45]} 22. Nxg7 {[%emt 0:00:10]} Kxg7 {[%emt 0:00:31]} 23. Bb2 {[%emt 0:00:07]} Rcd8 {[%emt 0:00:50]} 24. Ba1 {[%emt 0:05:09]} Kf7 {[%emt 0:02:33]} 25. Qb2 {[%emt 0:10:59]} Qe5 {[%emt 0:04:20]} 26. Qa2 {[%emt 0:01:49]} Qe7 {[%emt 0:01:40]} 27. a6 {[%emt 0:07:05]} Rb8 {[%emt 0:09:33]} 28. axb7 {[%emt 0:03:47]} Rbxb7 {[%emt 0:00:39]} 29. Qa4 {[%emt 0:01:17]} c5 {[%emt 0:03:13]} 30. b5 {[%emt 0:01:14]} Rb6 {[%emt 0:02:11]} 31. Bb2 {[%emt 0:01:47]} h6 {[%emt 0:02:41]} 32. Qa1 {[%emt 0:02:37]} Kg7 {[%emt 0:01:46]} 33. Ra3 {[%emt 0:02:25]} Qf7 {[%emt 0:01:44]} 34. Bxe4 {[%emt 0:00:55]} fxe4 {[%emt 0:00:13]} 35. Bxf6+ {[%emt 0:00:07]} Qxf6 {[%emt 0:00:22]} 36. Rxa7 {[%emt 0:00:13]} Rbb7 {[%emt 0:01:44]} 37. Rxb7 {[%emt 0:00:41]} Rxb7 {[%emt 0:00:06]} 38. Qxf6+ {[%emt 0:00:09]} Kxf6 {[%emt 0:00:04]} 39. Rxd6+ {[%emt 0:00:08]} Kf5 {[%emt 0:00:59]} 40. Rc6 {[%emt 0:00:00]} Rd7 {[%emt 0:00:00]} 41. Rxc5+ {[%emt 0:01:14]} Kg4 {[%emt 0:00:35]} 42. Kg2 {[%emt 0:00:04]} g5 {[%emt 0:00:09]} 43. h3+ {[%emt 0:00:20]} Kh5 {[%emt 0:00:04]} 44. Rc6 {[%emt 0:00:07]} Rh7 {[%emt 0:00:18]} 45. g4+ {[%emt 0:00:15]} Kh4 {[%emt 0:00:07]} 46. b6 1-0

[Event "FIDE WYCC Girls U14 2023"]
[Site "Montesilvano"]
[Date "2023.11.15"]
[Round "3.12"]
[White "Stefan, Iulia-Cristiana"]
[Black "Dicen, Elis Denele"]
[Result "1-0"]
[ECO "D02"]
[WhiteElo "1748"]
[BlackElo "1976"]
[Annotator "NA"]
[PlyCount "143"]
[EventDate "2023.11.13"]
[EventType "swiss"]
[EventCountry "ITA"]
[SourceTitle "playchess.com"]
[Source "ChessBase"]
[SourceQuality "1"]
[TimeControl "40/5400+30:1800+30"]

1. d4 {[%emt 0:00:02]} d5 {[%emt 0:00:08]} 2. Nf3 {[%emt 0:00:05]} Nf6 {[%emt 0:00:08]} 3. Bf4 {[%emt 0:00:06]} e6 {[%emt 0:00:10]} 4. e3 {[%emt 0:00:09]} Bd6 {[%emt 0:00:08]} 5. Ne5 {[%emt 0:00:06]} O-O {[%emt 0:01:03]} 6. Nd2 {[%emt 0:00:11]} c5 {[%emt 0:00:58]} 7. c3 {[%emt 0:00:06]} b6 {[%emt 0:02:17]} 8. Bd3 {[%emt 0:01:05]} Bb7 {[%emt 0:01:47]} 9. Qf3 {[%emt 0:06:20]} Nc6 {[%emt 0:06:37]} 10. Qh3 {[%emt 0:01:44]} Ne7 {[%emt 0:19:42]} 11. g4 {[%emt 0:15:57]} Ng6 {[%emt 0:03:31]} 12. f3 {[%emt 0:32:06]} Qc7 {[%emt 0:05:56]} 13. g5 {[%emt 0:01:14]} Ne8 {[%emt 0:05:38]} 14. Rg1 {[%emt 0:05:09]} Qe7 {[%emt 0:08:28]} 15. Rg3 {[%emt 0:10:06]} cxd4 {[%emt 0:13:31]} 16. exd4 {[%emt 0:02:50]} Bxe5 {[%emt 0:07:30]} 17. Bxe5 {[%emt 0:01:14]} f5 {[%emt 0:05:23]} 18. gxf6 {[%emt 0:01:12]} gxf6 {[%emt 0:00:41]} 19. Bxg6 {[%emt 0:01:04]} hxg6 {[%emt 0:00:10]} 20. Rxg6+ {[%emt 0:00:19]} Ng7 {[%emt 0:00:15]} 21. Bf4 {[%emt 0:05:52]} e5 {[%emt 0:02:05]} 22. dxe5 {[%emt 0:00:49]} fxe5 {[%emt 0:00:15]} 23. Bh6 {[%emt 0:00:20]} Rf7 {[%emt 0:00:44]} 24. O-O-O {[%emt 0:01:59]} Bc8 {[%emt 0:02:13]} 25. Qh5 {[%emt 0:00:58]} Rf5 {[%emt 0:02:33]} 26. Qg4 {[%emt 0:02:33]} Rf7 {[%emt 0:01:13]} 27. Qg3 {[%emt 0:01:59]} Bf5 {[%emt 0:00:54]} 28. Rg5 {[%emt 0:00:13]} Rc8 {[%emt 0:00:46]} 29. Rg1 {[%emt 0:01:16]} Rc7 {[%emt 0:01:24]} 30. Qh4 {[%emt 0:02:00]} Qf8 {[%emt 0:01:39]} 31. Rh5 {[%emt 0:00:51]} Bh7 {[%emt 0:02:00]} 32. Be3 {[%emt 0:00:29]} Qe7 {[%emt 0:01:16]} 33. Rxh7 {[%emt 0:00:20]} Qxh4 {[%emt 0:00:26]} 34. Rxh4 {[%emt 0:00:04]} Kf8 {[%emt 0:00:13]} 35. Bh6 {[%emt 0:01:07]} Ke8 {[%emt 0:00:20]} 36. Bxg7 {[%emt 0:00:26]} Rxg7 {[%emt 0:00:14]} 37. Rh8+ {[%emt 0:00:22]} Kf7 {[%emt 0:00:14]} 38. Rxg7+ {[%emt 0:00:27]} Kxg7 {[%emt 0:00:07]} 39. Re8 {[%emt 0:01:05]} Kf6 {[%emt 0:00:11]} 40. Rd8 {[%emt 0:00:00]} d4 {[%emt 0:00:00]} 41. Ne4+ {[%emt 0:02:11]} Kf5 {[%emt 0:00:55]} 42. Rf8+ {[%emt 0:00:10]} Kg6 {[%emt 0:00:24]} 43. Rf6+ {[%emt 0:01:00]} Kg7 {[%emt 0:00:11]} 44. h4 {[%emt 0:01:26]} dxc3 {[%emt 0:00:22]} 45. bxc3 {[%emt 0:00:07]} b5 {[%emt 0:00:27]} 46. Kd2 {[%emt 0:00:31]} Rb7 {[%emt 0:00:53]} 47. Re6 {[%emt 0:01:08]} b4 {[%emt 0:00:27]} 48. Rxe5 {[%emt 0:00:50]} bxc3+ {[%emt 0:00:23]} 49. Kxc3 {[%emt 0:00:13]} Kg6 {[%emt 0:00:35]} 50. Rg5+ {[%emt 0:00:20]} Kh6 {[%emt 0:00:30]} 51. f4 {[%emt 0:00:34]} Rf7 {[%emt 0:00:28]} 52. f5 {[%emt 0:00:14]} Rc7+ {[%emt 0:00:47]} 53. Kd2 {[%emt 0:01:33]} Rc6 {[%emt 0:00:47]} 54. Rg6+ {[%emt 0:00:59]} Rxg6 {[%emt 0:00:10]} 55. fxg6 {[%emt 0:00:03]} Kxg6 {[%emt 0:00:11]} 56. Ng3 {[%emt 0:00:03]} Kh6 {[%emt 0:00:11]} 57. Kc3 {[%emt 0:00:05]} a6 {[%emt 0:00:08]} 58. Kb4 {[%emt 0:00:03]} Kh7 {[%emt 0:00:10]} 59. Ka5 {[%emt 0:00:03]} Kg6 {[%emt 0:00:12]} 60. Kxa6 {[%emt 0:00:06]} Kg7 {[%emt 0:00:16]} 61. Kb7 {[%emt 0:00:09]} Kf7 {[%emt 0:00:32]} 62. a4 {[%emt 0:00:31]} Kg7 {[%emt 0:00:21]} 63. a5 {[%emt 0:00:04]} Kf8 {[%emt 0:00:06]} 64. a6 {[%emt 0:00:02]} Ke7 {[%emt 0:00:07]} 65. a7 {[%emt 0:00:04]} Kd7 {[%emt 0:00:18]} 66. a8=Q {[%emt 0:00:05]} Ke7 {[%emt 0:00:06]} 67. Qc8 {[%emt 0:00:07]} Kf7 {[%emt 0:00:06]} 68. Qd8 {[%emt 0:00:06]} Kg6 {[%emt 0:00:07]} 69. Qe7 {[%emt 0:00:22]} Kh6 {[%emt 0:00:09]} 70. Qg5+ {[%emt 0:00:04]} Kh7 {[%emt 0:00:07]} 71. Nf5 {[%emt 0:00:04]} Kh8 {[%emt 0:00:06]} 72. Qg7# {[%emt 0:00:03]} 1-0